[Event "BL 2016-17"]
[Site "Berlin"]
[Date "2017.04.29"]
[Round "13"]
[White "Loxine, Jakov"]
[Black "Raykhman, Alexander"]
[Result "1/2-1/2"]
[ECO "B50"]
[WhiteElo "2406"]
[BlackElo "2403"]
[Annotator "NA"]
[PlyCount "82"]
[EventDate "2017.??.??"]
[EventType "team-tourn"]
[EventCountry "GER"]
[SourceTitle "playchess.com"]
[Source "ChessBase"]
[SourceQuality "1"]
[WhiteTeam "TU Dresden"]
[BlackTeam "Schwäbisch Hall"]
[TimeControl "40/6000+30:3000+30"]

1. e4 {[%emt 0:00:00]} c5 {[%emt 0:00:18]} 2. Nf3 {[%emt 0:00:00]} d6 {[%emt 0:00:17]} 3. Nc3 {[%emt 0:00:16]} a6 {[%emt 0:00:50]} 4. a4 {[%emt 0:00:05]} Bg4 {[%emt 0:01:45]} 5. h3 {[%emt 0:00:26]} Bxf3 {[%emt 0:00:10]} 6. Qxf3 {[%emt 0:00:06]} Nc6 {[%emt 0:00:07]} 7. Qd1 {[%emt 0:07:12]} g6 {[%emt 0:02:04]} 8. g3 {[%emt 0:01:51]} Bg7 {[%emt 0:00:11]} 9. Bg2 {[%emt 0:00:06]} e6 {[%emt 0:00:10]} 10. O-O {[%emt 0:00:13]} Nge7 {[%emt 0:00:05]} 11. d3 {[%emt 0:01:23]} Rb8 {[%emt 0:01:20]} 12. Ne2 O-O {[%emt 0:04:43]} 13. c3 {[%emt 0:15:15]} b5 {[%emt 0:14:29]} 14. axb5 {[%emt 0:04:02]} axb5 {[%emt 0:02:48]} 15. Bg5 {[%emt 0:00:47]} h6 {[%emt 0:09:30]} 16. Be3 {[%emt 0:02:56]} b4 {[%emt 0:03:08]} 17. Ra6 {[%emt 0:21:56]} bxc3 {[%emt 0:04:22]} 18. bxc3 {[%emt 0:00:17]} Rb2 {[%emt 0:00:13]} 19. Re1 {[%emt 0:01:42]} Qb8 {[%emt 0:02:20]} 20. d4 {[%emt 0:16:54]} cxd4 {[%emt 0:00:18]} 21. Nxd4 {[%emt 0:10:10]} Rc8 {[%emt 0:00:42]} 22. Bf1 {[%emt 0:11:14]} Ne5 {[%emt 0:08:56]} 23. Qa1 {[%emt 0:04:06]} d5 {[%emt 0:07:46]} 24. Qa3 {[%emt 0:05:49]} Rb7 {[%emt 0:16:54]} 25. Ra1 {[%emt 0:00:52]} dxe4 {[%emt 0:03:10]} 26. Nb5 {[%emt 0:00:54]} Nd5 {[%emt 0:03:40]} 27. Ba7 {[%emt 0:00:39]} Rxa7 {[%emt 0:02:06]} 28. Rxa7 {[%emt 0:00:09]} Nxc3 {[%emt 0:17:36]} 29. Nxc3 {[%emt 0:01:50]} Nf3+ {[%emt 0:00:05]} 30. Kh1 {[%emt 0:01:29]} Bxc3 {[%emt 0:00:14]} 31. Ra8 {[%emt 0:00:54]} Qxa8 {[%emt 0:00:10]} 32. Qxa8 Rxa8 33. Rxa8+ {[%emt 0:00:25]} Kg7 {[%emt 0:00:13]} 34. Bg2 {[%emt 0:00:26]} Bd4 {[%emt 0:02:42]} 35. Bxf3 {[%emt 0:00:25]} exf3 {[%emt 0:00:02]} 36. Kg1 {[%emt 0:00:26]} e5 {[%emt 0:00:07]} 37. Ra3 {[%emt 0:00:03]} e4 {[%emt 0:04:30]} 38. Ra4 {[%emt 0:01:47]} e3 {[%emt 0:00:04]} 39. Rxd4 {[%emt 0:01:13]} e2 {[%emt 0:00:03]} 40. Re4 {[%emt 0:00:03]} f5 {[%emt 0:50:05]} 41. Re3 {[%emt 0:50:36]} g5 {[%emt 0:01:11]} 1/2-1/2

[Event "BL 2016-17"]
[Site "Berlin"]
[Date "2017.04.29"]
[Round "13"]
[White "Zeller, Frank"]
[Black "Loxine, Jakov"]
[Result "0-1"]
[ECO "B30"]
[WhiteElo "2390"]
[BlackElo "2406"]
[Annotator "NA"]
[PlyCount "121"]
[EventDate "2017.??.??"]
[EventType "team-tourn"]
[EventCountry "GER"]
[SourceTitle "playchess.com"]
[Source "ChessBase"]
[SourceQuality "1"]
[WhiteTeam "Schwäbisch Hall"]
[BlackTeam "TU Dresden"]
[TimeControl "40/6000+30:3000+30"]

1. e4 {[%emt 0:00:00]} c5 {[%emt 0:00:04]} 2. Nf3 {[%emt 0:00:00]} Nc6 {[%emt 0:00:04]} 3. Nc3 {[%emt 0:00:05]} d6 {[%emt 0:00:07]} 4. d4 {[%emt 0:00:26]} cxd4 {[%emt 0:00:06]} 5. Nxd4 {[%emt 0:00:03]} e5 {[%emt 0:00:07]} 6. Nf5 {[%emt 0:11:30]} Bxf5 {[%emt 0:00:10]} 7. exf5 {[%emt 0:00:01]} Qd7 {[%emt 0:00:06]} 8. Bc4 {[%emt 0:09:52]} Qxf5 {[%emt 0:14:14]} 9. Be3 {[%emt 0:04:11]} Nf6 {[%emt 0:02:20]} 10. h3 {[%emt 0:01:52]} h6 {[%emt 0:04:18]} 11. g4 {[%emt 0:08:54]} Qd7 {[%emt 0:03:09]} 12. Qf3 {[%emt 0:00:43]} O-O-O {[%emt 0:14:53]} 13. O-O-O {[%emt 0:01:30]} Kb8 {[%emt 0:00:19]} 14. Rhg1 {[%emt 0:04:02]} Na5 {[%emt 0:12:32]} 15. Bb5 {[%emt 0:17:35]} Qe6 {[%emt 0:00:12]} 16. Nd5 {[%emt 0:01:42]} Nxd5 {[%emt 0:03:03]} 17. Rxd5 {[%emt 0:00:49]} g6 {[%emt 0:16:54]} 18. Bd3 $11 {[%emt 0:20:30]} Nc6 {[%emt 0:00:23]} 19. Be4 {[%emt 0:00:17]} a6 {[%emt 0:13:35]} 20. Rgd1 {[%emt 0:02:27]} Nd4 {[%emt 0:03:24]} 21. R5xd4 {[%emt 0:07:25]} exd4 {[%emt 0:00:07]} 22. Bxd4 {[%emt 0:00:06]} Rh7 {[%emt 0:04:47]} 23. Bxb7 {[%emt 0:04:28]} d5 {[%emt 0:01:10]} 24. Qb3 {[%emt 0:00:20]} Kc7 {[%emt 0:00:06]} 25. Ba7 {[%emt 0:04:15]} d4 {[%emt 0:05:51]} 26. Qf3 {[%emt 0:01:35]} f5 {[%emt 0:02:56]} 27. gxf5 {[%emt 0:00:34]} gxf5 {[%emt 0:00:06]} 28. Bxd4 {[%emt 0:00:33]} Rhd7 {[%emt 0:00:46]} 29. c3 {[%emt 0:02:39]} Bg7 {[%emt 0:01:49]} 30. Ba8 {[%emt 0:00:37]} Kb8 {[%emt 0:02:04]} 31. Bc6 {[%emt 0:00:36]} Rd6 {[%emt 0:00:52]} 32. Qg3 {[%emt 0:02:09]} Bxd4 {[%emt 0:00:30]} 33. Rxd4 {[%emt 0:00:01]} Kc8 {[%emt 0:01:23]} 34. Rxd6 {[%emt 0:02:41]} Rxd6 {[%emt 0:00:05]} 35. Bf3 {[%emt 0:00:38]} Qe1+ {[%emt 0:00:25]} 36. Kc2 {[%emt 0:00:01]} Qd2+ {[%emt 0:00:12]} 37. Kb3 {[%emt 0:01:19]} Rb6+ {[%emt 0:00:38]} 38. Kc4 {[%emt 0:00:00]} Rxb2 {[%emt 0:00:26]} 39. Qg8+ {[%emt 0:02:29]} Kc7 {[%emt 0:01:24]} 40. Qg7+ {[%emt 0:00:29]} Qd7 {[%emt 0:50:39]} 41. Qe5+ Kc8 {[%emt 0:00:00]} 42. Qc5+ {[%emt 0:07:01]} Qc7 {[%emt 0:00:00]} 43. Bc6 {[%emt 0:00:22]} Kb8 {[%emt 0:00:00]} 44. Qf8+ {[%emt 0:06:00]} Ka7 {[%emt 0:00:00]} 45. Qc5+ {[%emt 0:00:07]} Kb8 {[%emt 0:00:00]} 46. Qf8+ {[%emt 0:00:06]} Ka7 {[%emt 0:00:00]} 47. Qc5+ {[%emt 0:00:04]} Rb6 {[%emt 0:00:00]} 48. Kd5 {[%emt 0:00:11]} f4 {[%emt 0:00:00]} 49. f3 {[%emt 0:17:59]} Qf7+ {[%emt 0:00:00]} 50. Ke5 {[%emt 0:03:33]} Qh5+ {[%emt 0:00:00]} 51. Kd6 {[%emt 0:00:33]} Qxc5+ {[%emt 0:00:00]} 52. Kxc5 {[%emt 0:00:02]} Rb2 {[%emt 0:00:00]} 53. Bd5 {[%emt 0:00:05]} Rh2 {[%emt 0:00:00]} 54. Be6 {[%emt 0:00:07]} Rf2 {[%emt 0:00:00]} 55. Bd5 {[%emt 0:00:21]} Rh2 {[%emt 0:00:00]} 56. Be6 {[%emt 0:00:05]} Kb7 {[%emt 0:00:00]} 57. a4 {[%emt 0:09:58]} Kc7 {[%emt 0:00:00]} 58. c4 {[%emt 0:02:49]} Rb2 {[%emt 0:00:00]} 59. Bf5 {[%emt 0:01:55]} Re2 {[%emt 0:00:00]} 60. Bg4 {[%emt 0:01:05]} h5 61. Kd4 0-1

[Event "BL 2016-17"]
[Site "Berlin"]
[Date "2017.04.29"]
[Round "13"]
[White "Seger, Ruediger"]
[Black "Capone, Nicola"]
[Result "1/2-1/2"]
[ECO "C04"]
[WhiteElo "2351"]
[BlackElo "2349"]
[Annotator "NA"]
[PlyCount "112"]
[EventDate "2017.??.??"]
[EventType "team-tourn"]
[EventCountry "GER"]
[SourceTitle "playchess.com"]
[Source "ChessBase"]
[SourceQuality "1"]
[WhiteTeam "SG Trier"]
[BlackTeam "Aufwärts Aachen"]
[TimeControl "40/6000+30:3000+30"]

1. e4 {[%emt 0:00:00]} e6 {[%emt 0:00:14]} 2. d4 {[%emt 0:00:02]} d5 {[%emt 0:00:04]} 3. Nd2 {[%emt 0:00:12]} Nc6 {[%emt 0:00:05]} 4. Ngf3 {[%emt 0:00:45]} Nf6 {[%emt 0:00:05]} 5. e5 {[%emt 0:00:18]} Nd7 {[%emt 0:00:04]} 6. Be2 {[%emt 0:00:37]} f6 {[%emt 0:00:05]} 7. exf6 {[%emt 0:00:05]} Qxf6 {[%emt 0:00:04]} 8. Nf1 {[%emt 0:00:31]} Bd6 {[%emt 0:00:04]} 9. Ne3 {[%emt 0:01:14]} b6 {[%emt 0:00:04]} 10. O-O {[%emt 0:05:15]} Bb7 {[%emt 0:00:03]} 11. c3 {[%emt 0:14:47]} O-O-O {[%emt 0:10:29]} 12. Ng4 {[%emt 0:05:35]} Qf5 {[%emt 0:17:41]} 13. Nh4 {[%emt 0:00:41]} Qf7 {[%emt 0:01:38]} 14. f4 {[%emt 0:00:53]} Nf6 {[%emt 0:13:26]} 15. Ne5 {[%emt 0:01:34]} Qe7 $16 {[%emt 0:06:57]} 16. Nhf3 {[%emt 0:07:33]} Ne4 {[%emt 0:06:40]} 17. Be3 {[%emt 0:13:26]} Rdf8 {[%emt 0:11:35]} 18. Nd2 {[%emt 0:05:50]} Qe8 {[%emt 0:14:07]} 19. Bb5 {[%emt 0:09:22]} a6 {[%emt 0:02:52]} 20. Bxc6 {[%emt 0:00:44]} Bxc6 {[%emt 0:00:04]} 21. Nxc6 {[%emt 0:01:02]} Qxc6 {[%emt 0:00:04]} 22. Nxe4 {[%emt 0:00:05]} dxe4 {[%emt 0:00:03]} 23. Qe2 {[%emt 0:00:13]} a5 {[%emt 0:09:48]} 24. Rae1 {[%emt 0:00:18]} Rf6 {[%emt 0:00:13]} 25. Bc1 {[%emt 0:00:39]} Rhf8 {[%emt 0:00:26]} 26. Qxe4 {[%emt 0:01:43]} Qxe4 {[%emt 0:00:04]} 27. Rxe4 {[%emt 0:00:06]} g5 {[%emt 0:00:45]} 28. Rfe1 {[%emt 0:00:43]} gxf4 {[%emt 0:09:12]} 29. Rxe6 {[%emt 0:00:24]} Kd7 {[%emt 0:01:47]} 30. Rxf6 {[%emt 0:00:56]} Rxf6 {[%emt 0:00:01]} 31. Kf2 {[%emt 0:02:35]} Rh6 {[%emt 0:01:48]} 32. h3 {[%emt 0:00:52]} Re6 {[%emt 0:00:02]} 33. Re2 {[%emt 0:05:36]} c6 {[%emt 0:03:34]} 34. Kf3 {[%emt 0:00:46]} Rxe2 {[%emt 0:00:16]} 35. Kxe2 {[%emt 0:00:04]} Ke6 {[%emt 0:00:01]} 36. Kd3 {[%emt 0:00:13]} Kf5 {[%emt 0:00:05]} 37. a4 {[%emt 0:02:14]} h5 {[%emt 0:00:18]} 38. Bd2 {[%emt 0:01:15]} Be7 {[%emt 0:01:31]} 39. b4 {[%emt 0:01:21]} Bd6 {[%emt 0:00:19]} 40. bxa5 {[%emt 0:01:30]} bxa5 41. c4 {[%emt 0:52:37]} Bc7 {[%emt 0:50:05]} 42. c5 {[%emt 0:00:19]} Bd8 {[%emt 0:01:57]} 43. d5 {[%emt 0:01:15]} cxd5 {[%emt 0:01:17]} 44. Kd4 {[%emt 0:00:07]} Ke6 {[%emt 0:00:10]} 45. Bxf4 {[%emt 0:00:10]} Bf6+ {[%emt 0:00:08]} 46. Kd3 {[%emt 0:00:19]} Kd7 {[%emt 0:00:25]} 47. g4 {[%emt 0:11:38]} hxg4 {[%emt 0:00:12]} 48. hxg4 {[%emt 0:00:04]} Kc6 {[%emt 0:01:20]} 49. Be3 {[%emt 0:00:20]} Be7 {[%emt 0:00:00]} 50. Bd4 {[%emt 0:00:00]} Bg5 {[%emt 0:00:00]} 51. Ke2 {[%emt 0:00:00]} Bh6 {[%emt 0:00:00]} 52. Kf3 {[%emt 0:00:00]} Bg5 {[%emt 0:00:00]} 53. Kg3 {[%emt 0:00:00]} Kd7 {[%emt 0:00:00]} 54. Kf3 {[%emt 0:00:00]} Kc6 {[%emt 0:00:00]} 55. Be3 {[%emt 0:00:00]} Bf6 {[%emt 0:00:00]} 56. Bd2 {[%emt 0:00:00]} Bd8 {[%emt 0:00:00]} 1/2-1/2

[Event "BL 2016-17"]
[Site "Berlin"]
[Date "2017.04.29"]
[Round "13"]
[White "Eichler, Christoph"]
[Black "Schneider, Stefan"]
[Result "1/2-1/2"]
[ECO "D25"]
[WhiteElo "2304"]
[BlackElo "2356"]
[Annotator "NA"]
[PlyCount "50"]
[EventDate "2017.??.??"]
[EventType "team-tourn"]
[EventCountry "GER"]
[SourceTitle "playchess.com"]
[Source "ChessBase"]
[SourceQuality "1"]
[WhiteTeam "Zugzwang München"]
[BlackTeam "Bayern München"]
[TimeControl "40/6000+30:3000+30"]

1. Nf3 {[%emt 0:00:00]} d5 {[%emt 0:00:48]} 2. d4 {[%emt 0:00:00]} Nf6 {[%emt 0:01:03]} 3. c4 {[%emt 0:00:00]} dxc4 {[%emt 0:00:57]} 4. e3 {[%emt 0:00:21]} Bg4 {[%emt 0:00:49]} 5. Bxc4 {[%emt 0:00:40]} e6 {[%emt 0:00:04]} 6. h3 {[%emt 0:01:34]} Bh5 {[%emt 0:00:17]} 7. Nc3 {[%emt 0:00:31]} Nc6 {[%emt 0:01:52]} 8. O-O {[%emt 0:09:55]} Bd6 {[%emt 0:02:04]} 9. Be2 {[%emt 0:07:47]} O-O {[%emt 0:00:24]} 10. Nb5 {[%emt 0:05:28]} Be7 {[%emt 0:10:14]} 11. a3 {[%emt 0:07:25]} a6 {[%emt 0:13:35]} 12. Nc3 {[%emt 0:00:12]} Bd6 {[%emt 0:00:08]} 13. b4 {[%emt 0:02:16]} Qe8 {[%emt 0:16:19]} 14. Bb2 {[%emt 0:13:24]} e5 {[%emt 0:20:20]} 15. Nxe5 {[%emt 0:10:17]} Bxe2 {[%emt 0:00:41]} 16. Nxe2 {[%emt 0:00:16]} Nxe5 {[%emt 0:00:25]} 17. dxe5 {[%emt 0:00:04]} Bxe5 {[%emt 0:00:09]} 18. Bxe5 {[%emt 0:04:34]} Qxe5 {[%emt 0:00:07]} 19. Qd4 {[%emt 0:00:14]} Qe7 {[%emt 0:05:43]} 20. Qc4 {[%emt 0:06:55]} Rac8 {[%emt 0:04:48]} 21. Rac1 {[%emt 0:03:40]} Rfd8 {[%emt 0:06:30]} 22. Nd4 {[%emt 0:02:57]} Rd5 {[%emt 0:03:07]} 23. Nb3 {[%emt 0:01:41]} c6 {[%emt 0:01:07]} 24. Rfd1 {[%emt 0:02:37]} Rcd8 {[%emt 0:00:25]} 25. Rd4 {[%emt 0:03:04]} Rxd4 {[%emt 0:04:06]} 1/2-1/2

[Event "BL 2016-17"]
[Site "Berlin"]
[Date "2017.04.30"]
[Round "14"]
[White "Nikolic, Predrag"]
[Black "Kasimdzhanov, Rustam"]
[Result "*"]
[ECO "D27"]
[WhiteElo "2609"]
[BlackElo "2698"]
[Annotator "TA"]
[PlyCount "84"]
[EventDate "2017.??.??"]
[EventType "team-tourn"]
[EventCountry "GER"]
[SourceTitle "playchess.com"]
[Source "ChessBase"]
[SourceQuality "1"]
[WhiteTeam "Solingen"]
[BlackTeam "Baden-Baden"]
[TimeControl "40/6000+30:3000+30"]

1. d4 {[%emt 0:00:00]} d5 {[%emt 0:00:04]} 2. c4 {[%emt 0:00:10]} dxc4 $146 {[%emt 0:00:07]} (2... e6 3. Nf3 Nf6 4. g3 Be7 5. Bg2 O-O 6. O-O dxc4 7. Qc2 a6 8. a4 Bd7 9. Qxc4 Bc6 10. Bf4 Nbd7 11. Nc3 Rc8 12. Qd3 h6 13. Rfd1 Bb4 14. Na2 Be7 15. Nc3 Bb4 16. Ne5 Bxg2 17. Kxg2 Nxe5 18. dxe5 Bxc3 19. bxc3 Qxd3 20. exd3 {½-½ (32) Erdos,V (2591)-Kovacs,G (2516) Hungary 2010}) 3. Nf3 {[%emt 0:00:09]} Nf6 {[%emt 0:00:05]} 4. e3 {[%emt 0:00:11]} e6 {[%emt 0:00:05]} 5. Bxc4 {[%emt 0:00:16]} c5 {[%emt 0:00:07]} 6. O-O {[%emt 0:00:29]} a6 {[%emt 0:00:39]} 7. dxc5 {[%emt 0:00:33]} Bxc5 {[%emt 0:00:11]} 8. Qxd8+ {[%emt 0:00:37]} Kxd8 {[%emt 0:00:06]} 9. Rd1+ {[%emt 0:01:36]} Ke7 {[%emt 0:00:08]} 10. b3 {[%emt 0:00:20]} b6 {[%emt 0:11:29]} 11. Bb2 {[%emt 0:00:34]} Nbd7 {[%emt 0:04:11]} 12. Nbd2 {[%emt 0:01:09]} Bb7 {[%emt 0:00:58]} 13. Be2 {[%emt 0:00:45]} Rhc8 {[%emt 0:05:50]} 14. a3 {[%emt 0:01:02]} b5 {[%emt 0:04:51]} 15. a4 {[%emt 0:00:09]} bxa4 {[%emt 0:01:09]} 16. Rxa4 {[%emt 0:00:08]} Nb6 {[%emt 0:03:02]} 17. Ra5 {[%emt 0:00:19]} Bb4 {[%emt 0:05:47]} 18. Ba3 {[%emt 0:00:09]} Bxa3 {[%emt 0:04:56]} 19. Rxa3 {[%emt 0:00:06]} Nfd5 {[%emt 0:01:39]} 20. Nc4 {[%emt 0:02:55]} Nxc4 {[%emt 0:10:10]} 21. bxc4 {[%emt 0:00:43]} Nb4 {[%emt 0:03:29]} 22. Nd4 {[%emt 0:03:09]} Be4 {[%emt 0:15:03]} 23. Ra5 {[%emt 0:29:56]} f6 {[%emt 0:09:41]} 24. f3 {[%emt 0:12:59]} Bg6 {[%emt 0:03:39]} 25. f4 {[%emt 0:12:21]} Be4 {[%emt 0:02:22]} 26. c5 {[%emt 0:00:17]} Rc7 {[%emt 0:10:48]} 27. Nxe6 {[%emt 0:12:35]} Kxe6 {[%emt 0:07:01]} 28. Rd4 Bxg2 {[%emt 0:01:20]} 29. Rxb4 {[%emt 0:04:34]} Bb7 {[%emt 0:01:23]} 30. Kf2 {[%emt 0:00:49]} f5 {[%emt 0:02:26]} 31. Rb6+ {[%emt 0:03:13]} Ke7 {[%emt 0:00:15]} 32. c6 {[%emt 0:02:00]} Bxc6 {[%emt 0:02:57]} 33. Rc5 {[%emt 0:01:06]} Kd7 {[%emt 0:00:31]} 34. Rbxc6 {[%emt 0:03:33]} Rxc6 {[%emt 0:00:07]} 35. Rxc6 {[%emt 0:00:04]} Kxc6 {[%emt 0:00:03]} 36. Bf3+ {[%emt 0:00:06]} Kc5 {[%emt 0:01:03]} 37. Bxa8 {[%emt 0:00:07]} a5 {[%emt 0:00:02]} 38. Bb7 {[%emt 0:00:15]} a4 {[%emt 0:00:56]} 39. Bc8 {[%emt 0:00:06]} a3 {[%emt 0:00:41]} 40. Be6 {[%emt 0:00:07]} g6 {[%emt 0:50:35]} 41. Ke2 {[%emt 1:07:41]} Kd6 {[%emt 0:00:00]} 42. Bg8 {[%emt 0:00:00]} Ke7 {[%emt 0:00:00]} *

[Event "BL 2016-17"]
[Site "Berlin"]
[Date "2017.04.30"]
[Round "14"]
[White "Braun, Christian"]
[Black "Reich, Thomas"]
[Result "1/2-1/2"]
[ECO "B30"]
[WhiteElo "2356"]
[BlackElo "2367"]
[Annotator "NA"]
[PlyCount "131"]
[EventDate "2017.??.??"]
[EventType "team-tourn"]
[EventCountry "GER"]
[SourceTitle "playchess.com"]
[Source "ChessBase"]
[SourceQuality "1"]
[WhiteTeam "Aufwärts Aachen"]
[BlackTeam "Bayern München"]
[TimeControl "40/6000+30:3000+30"]

1. e4 {[%emt 0:00:00]} c5 {[%emt 0:00:06]} 2. Nf3 {[%emt 0:00:00]} Nc6 {[%emt 0:00:26]} 3. Bb5 {[%emt 0:00:00]} Na5 {[%emt 0:00:22]} 4. b4 {[%emt 0:04:01]} cxb4 {[%emt 0:02:10]} 5. a3 {[%emt 0:02:31]} bxa3 {[%emt 0:00:52]} 6. Bxa3 {[%emt 0:00:38]} e6 {[%emt 0:01:32]} 7. Bxf8 {[%emt 0:01:10]} Kxf8 {[%emt 0:00:05]} 8. d4 {[%emt 0:01:22]} d5 {[%emt 0:02:16]} 9. exd5 {[%emt 0:09:51]} exd5 {[%emt 0:01:12]} 10. O-O {[%emt 0:00:23]} Nf6 {[%emt 0:08:29]} 11. Ne5 {[%emt 0:00:52]} h5 {[%emt 0:05:34]} (11... Be6 $11 {remains equal.}) 12. Qf3 {[%emt 0:02:14]} (12. Qe1 $14 b6 13. Nc6) 12... Kg8 {[%emt 0:05:28]} 13. Nd2 {[%emt 0:07:44]} Be6 {[%emt 0:08:11]} 14. Rfe1 {[%emt 0:01:12]} Rh6 {[%emt 0:02:47]} 15. h3 $11 {[%emt 0:09:02]} Rc8 {[%emt 0:10:58]} 16. Bd3 {[%emt 0:01:50]} a6 {[%emt 0:09:04]} 17. Rab1 {[%emt 0:06:42]} b5 {[%emt 0:02:26]} 18. Qf4 {[%emt 0:02:31]} Nc4 {[%emt 0:02:25]} 19. Nb3 {[%emt 0:02:16]} Qc7 {[%emt 0:11:00]} 20. Ra1 {[%emt 0:05:13]} a5 {[%emt 0:01:54]} 21. Nc5 {[%emt 0:00:20]} Nxe5 {[%emt 0:03:01]} 22. Rxe5 {[%emt 0:00:26]} Nd7 {[%emt 0:02:15]} 23. Nxd7 {[%emt 0:02:24]} Bxd7 {[%emt 0:02:37]} 24. Qd2 {[%emt 0:06:01]} a4 {[%emt 0:08:26]} 25. Rxd5 {[%emt 0:00:44]} Rd6 {[%emt 0:02:56]} 26. Rxh5 {[%emt 0:00:59]} Qc3 {[%emt 0:00:06]} 27. Qxc3 {[%emt 0:05:35]} Rxc3 {[%emt 0:00:04]} 28. Bxb5 {[%emt 0:01:34]} Bxb5 {[%emt 0:00:18]} 29. Rxb5 {[%emt 0:00:07]} Rxd4 {[%emt 0:00:12]} 30. Rb2 {[%emt 0:07:21]} a3 {[%emt 0:03:08]} 31. Rb3 {[%emt 0:00:49]} Rxc2 {[%emt 0:00:06]} 32. Rbxa3 {[%emt 0:00:07]} Rf4 {[%emt 0:00:19]} 33. Rf1 {[%emt 0:00:36]} g6 {[%emt 0:00:42]} 34. g3 {[%emt 0:00:18]} Rfc4 {[%emt 0:00:46]} 35. Raa1 {[%emt 0:00:29]} Rd2 {[%emt 0:00:23]} 36. Kg2 {[%emt 0:00:10]} Rcc2 {[%emt 0:00:05]} 37. Ra4 {[%emt 0:00:21]} Kg7 {[%emt 0:00:18]} 38. h4 {[%emt 0:00:23]} Rb2 {[%emt 0:00:12]} 39. Rg4 {[%emt 0:00:13]} Rd5 {[%emt 0:01:18]} 40. Rf4 {[%emt 0:00:48]} Rd6 {[%emt 0:50:08]} 41. g4 {[%emt 0:51:54]} Rbd2 {[%emt 0:01:10]} 42. Kg3 {[%emt 0:02:35]} R6d3+ {[%emt 0:00:48]} 43. f3 {[%emt 0:00:47]} Rd1 {[%emt 0:00:14]} 44. Rxd1 {[%emt 0:00:40]} Rxd1 {[%emt 0:00:04]} 45. g5 {[%emt 0:01:53]} Ra1 {[%emt 0:01:28]} 46. Rb4 {[%emt 0:01:41]} Rc1 {[%emt 0:00:40]} 47. Rb2 {[%emt 0:00:25]} Ra1 {[%emt 0:00:09]} 48. Rf2 {[%emt 0:00:39]} Ra3 {[%emt 0:01:51]} 49. Rf1 {[%emt 0:00:53]} Rb3 {[%emt 0:00:09]} 50. Kg4 {[%emt 0:00:11]} Ra3 {[%emt 0:00:08]} 51. f4 {[%emt 0:00:44]} f5+ {[%emt 0:00:11]} 52. gxf6+ {[%emt 0:00:05]} Kxf6 {[%emt 0:00:02]} 53. Rb1 {[%emt 0:00:12]} Ra5 {[%emt 0:03:49]} 54. Rb6+ {[%emt 0:00:11]} Kf7 {[%emt 0:00:07]} 55. Rd6 {[%emt 0:00:56]} Rb5 {[%emt 0:00:16]} 56. Rd3 {[%emt 0:00:54]} Kf6 {[%emt 0:00:07]} 57. Re3 {[%emt 0:00:07]} Rb1 {[%emt 0:01:59]} 58. Rg3 {[%emt 0:02:29]} Ra1 {[%emt 0:01:01]} 59. Rh3 {[%emt 0:03:28]} Ra5 {[%emt 0:00:53]} 60. Rb3 {[%emt 0:00:24]} Rc5 {[%emt 0:00:14]} 61. Rb6+ {[%emt 0:01:56]} Kf7 {[%emt 0:00:07]} 62. Rb8 {[%emt 0:02:26]} Ra5 {[%emt 0:00:24]} 63. Rh8 {[%emt 0:00:10]} Rb5 {[%emt 0:01:56]} 64. Rc8 {[%emt 0:04:10]} Ra5 {[%emt 0:01:04]} 65. Rc7+ {[%emt 0:00:20]} Kf6 {[%emt 0:00:08]} 66. Rc6+ {[%emt 0:01:24] Ke5} 1/2-1/2

[Event "BL 2016-17"]
[Site "Berlin"]
[Date "2017.05.01"]
[Round "15"]
[White "Raykhman, Alexander"]
[Black "Nothnagel, Marian Can"]
[Result "1-0"]
[ECO "A48"]
[WhiteElo "2403"]
[BlackElo "2121"]
[Annotator "ChessBase"]
[PlyCount "69"]
[EventDate "2017.??.??"]
[EventType "team-tourn"]
[EventCountry "GER"]
[SourceTitle "playchess.com"]
[Source "ChessBase"]
[SourceQuality "1"]
[WhiteTeam "Schwäbisch Hall"]
[BlackTeam "Griesheim"]
[TimeControl "40/6000+30:3000+30"]

1. d4 {[%emt 0:00:00]} Nf6 {[%emt 0:00:06]} 2. Nf3 {[%emt 0:00:06]} g6 {[%emt 0:00:06]} 3. c4 {[%emt 0:00:05]} Bg7 {[%emt 0:00:03]} 4. e3 {[%emt 0:02:05]} O-O {[%emt 0:01:03]} 5. Be2 {[%emt 0:00:05]} d6 {[%emt 0:00:06]} 6. O-O {[%emt 0:00:08]} Nbd7 {[%emt 0:02:05]} 7. Nc3 {[%emt 0:02:06]} e5 {[%emt 0:02:32]} 8. b3 {[%emt 0:00:52]} Re8 {[%emt 0:04:17]} 9. a4 {[%emt 0:02:40]} e4 {[%emt 0:07:06]} 10. Nd2 {[%emt 0:04:24]} Nf8 {[%emt 0:00:06]} 11. a5 {[%emt 0:01:18]} a6 {[%emt 0:00:36]} 12. b4 {[%emt 0:05:07]} h5 {[%emt 0:02:34]} 13. b5 {[%emt 0:00:28]} Bf5 {[%emt 0:03:08]} 14. bxa6 {[%emt 0:09:26]} bxa6 {[%emt 0:01:13]} 15. Rb1 {[%emt 0:00:09]} N8h7 {[%emt 0:13:15]} 16. Ba3 {[%emt 0:11:50]} Bh6 {[%emt 0:22:13]} 17. Rb7 {[%emt 0:24:01]} Bc8 {[%emt 0:32:57]} 18. Rb3 {[%emt 0:00:26]} Bg4 {[%emt 0:00:32]} 19. Bxg4 {[%emt 0:11:10]} hxg4 {[%emt 0:00:08]} 20. Qc2 {[%emt 0:00:16]} Ng5 {[%emt 0:00:44]} 21. Nd5 {[%emt 0:02:08]} Kg7 {[%emt 0:09:30]} 22. Rc1 {[%emt 0:08:35]} Ra7 {[%emt 0:03:18]} 23. Rcb1 {[%emt 0:02:14]} Nxd5 {[%emt 0:00:47]} 24. cxd5 {[%emt 0:00:02]} Qf6 {[%emt 0:00:19]} 25. Qc6 {[%emt 0:01:22]} Raa8 {[%emt 0:01:04]} 26. Qxc7 {[%emt 0:00:57]} Rad8 {[%emt 0:00:06]} 27. Rb8 {[%emt 0:02:20]} Nh3+ {[%emt 0:02:09]} 28. gxh3 {[%emt 0:00:29]} gxh3 {[%emt 0:00:57]} 29. Rxd8 {[%emt 0:02:02]} Bxe3 {[%emt 0:00:53]} 30. fxe3 {[%emt 0:01:41]} Qg5+ {[%emt 0:00:41]} 31. Kf2 {[%emt 0:00:13]} Rxd8 {[%emt 0:00:40]} 32. Rb8 {[%emt 0:01:45]} Rxb8 {[%emt 0:00:12]} 33. Qxb8 {[%emt 0:00:06]} Qg2+ {[%emt 0:00:21]} 34. Ke1 {[%emt 0:00:07]} Qxh2 {[%emt 0:00:33]} 35. Bxd6 {[%emt 0:00:05]} 1-0